bitfinex/quotes_SOLUSD_20240818
["timestamp","ask_amount","ask_price","bid_price","bid_amount"]
[1723958156038,6.2143,141.96,141.88,20.0]
[1723958156039,6.2143,141.96,141.88,22.11727618]
[1723958156339,16.0986,141.95,141.88,2.11727618]
[1723958156543,6.2143,141.93,141.86,2.11727618]
[1723958156756,6.2143,141.93,141.87,2.11727618]
[1723958157063,6.2143,141.93,141.86,2.11727618]
[1723958157455,6.2143,141.93,141.84,17.81910601]
[1723958157456,6.2143,141.93,141.85,2.11727618]
[1723958157643,6.2143,141.93,141.86,11.47727618]
[1723958158164,6.2143,141.93,141.86,9.36]
[1723958158664,6.2143,141.93,141.85,73.64402805]
[1723958158861,6.2143,141.93,141.85,65.37647]
[1723958159044,6.2143,141.93,141.85,67.49405046]
[1723958159364,6.2143,141.93,141.85,65.37647]
[1723958159966,6.2143,141.93,141.85,20.0]
[1723958160270,16.0986,141.91,141.85,20.0]
[1723958160448,16.0986,141.91,141.83,22.11758046]
[1723958160650,16.0986,141.91,141.84,9.48549]
[1723958160845,16.0986,141.91,141.85,20.0]
[1723958164363,16.0986,141.91,141.84,9.36]
[1723958165041,16.0986,141.91,141.81,0.12549]
[1723958165244,16.0986,141.91,141.81,45.50196]
[1723958165869,21.0314,141.91,141.82,20.0]
[1723958166074,21.0314,141.91,141.82,29.36]
[1723958166365,6.2143,141.89,141.82,29.36]
[1723958166540,6.2143,141.89,141.82,20.0]
[1723958166960,15.1765,141.88,141.82,20.0]
[1723958167775,15.1765,141.88,141.83,9.36]
[1723958168559,15.1765,141.88,141.81,0.12549]
[1723958170062,15.1765,141.88,141.8,9.36]
[1723958170269,24.5365,141.88,141.8,9.36]
[1723958172269,29.4702,141.88,141.8,9.36]
[1723958172452,29.4702,141.88,141.79,0.25098]
[1723958172657,29.4702,141.88,141.79,65.25098]
[1723958173673,24.5365,141.88,141.8,9.36]
[1723958173878,24.5365,141.88,141.79,65.25098]
[1723958173879,15.1765,141.88,141.83,9.36]
[1723958174060,15.1765,141.88,141.84,1.40978129]
[1723958174253,15.1765,141.88,141.83,9.36]
[1723958174448,15.1765,141.88,141.79,71.28278242]
[1723958174651,15.1765,141.88,141.79,65.12549]
[1723958174956,15.1765,141.88,141.81,9.36]
[1723958176364,15.1765,141.88,141.79,29.48549]
[1723958176875,15.1765,141.88,141.81,9.36]
[1723958177476,15.1765,141.88,141.82,1.41000571]
[1723958178181,15.1765,141.88,141.81,9.36]
[1723958179576,24.5365,141.88,141.81,9.36]
[1723958180074,24.5365,141.88,141.79,20.12549]
[1723958180275,24.5365,141.88,141.79,29.48549]
[1723958182479,6.49,141.87,141.79,29.48549]
[1723958182676,6.49,141.87,141.79,20.12549]
[1723958182878,6.49,141.87,141.79,0.25098]
[1723958183074,6.49,141.87,141.79,20.25098]
[1723958188268,6.49,141.87,141.79,22.36926272]
[1723958189380,6.49,141.87,141.8,11.47828272]
[1723958189882,6.49,141.87,141.8,11.47828162]
[1723958190262,6.49,141.87,141.81,2.11828162]
[1723958191184,6.49,141.87,141.82,2.11828162]
[1723958191477,6.49,141.87,141.81,2.11828162]
[1723958191671,6.49,141.87,141.8,9.36]
[1723958191672,6.49,141.87,141.82,2.11828162]
[1723958191981,6.49,141.87,141.81,2.11828162]
[1723958192182,6.49,141.87,141.82,2.11828162]
[1723958192357,6.49,141.87,141.81,2.11828162]
[1723958192358,11.4241,141.87,141.81,2.11828162]
[1723958192560,11.4241,141.87,141.82,2.11828162]
[1723958192871,11.4241,141.87,141.79,10.45095084]
[1723958192872,11.4241,141.87,141.8,2.11828162]
[1723958193068,11.4241,141.87,141.81,2.11828162]
[1723958193264,11.4241,141.87,141.82,2.11828162]
[1723958193469,11.4241,141.87,141.8,2.11828162]
[1723958193671,11.4241,141.87,141.81,2.11828162]
[1723958193864,9.36,141.84,141.79,2.11828162]
[1723958194055,9.36,141.84,141.78,2.11828162]
[1723958194288,9.36,141.84,141.77,22.11896492]
[1723958194496,9.36,141.84,141.78,2.11896492]
[1723958194661,9.36,141.84,141.79,2.11896492]
[1723958194864,9.36,141.84,141.78,2.11896492]
[1723958195385,9.36,141.84,141.77,2.11896492]
[1723958195682,9.36,141.84,141.78,2.11896492]
[1723958195878,9.36,141.84,141.77,2.11896492]
[1723958196080,9.36,141.84,141.78,2.11896492]
[1723958196284,9.36,141.84,141.77,2.11896492]
[1723958196466,9.36,141.84,141.78,2.11896492]
[1723958196667,9.36,141.84,141.76,20.0]
[1723958196668,9.36,141.84,141.77,2.11896492]
[1723958196867,9.36,141.84,141.78,2.11896492]
[1723958197068,9.36,141.84,141.76,20.0]
[1723958197069,9.36,141.84,141.77,2.11896492]
[1723958197381,9.36,141.84,141.78,2.11896492]
[1723958197574,6.2687,141.85,141.77,3.52938784]
[1723958197760,6.2687,141.85,141.76,29.36]
[1723958197761,6.2687,141.85,141.79,1.41042292]
[1723958198978,6.2687,141.85,141.78,2.11911523]
[1723958199283,6.2687,141.85,141.77,2.11911523]
[1723958201696,6.2687,141.85,141.8,9.36]
[1723958202015,6.2687,141.85,141.81,1.41005944]
[1723958203286,6.2687,141.85,141.8,11.4789165]
[1723958203494,6.2687,141.85,141.8,9.36]
[1723958203694,6.2687,141.85,141.8,11.4789165]
[1723958203891,6.2687,141.85,141.8,9.36]
[1723958204082,6.2687,141.85,141.8,11.4789165]
[1723958204277,6.2687,141.85,141.81,2.1189165]
[1723958204804,6.2687,141.85,141.82,12.88891428]
[1723958204986,6.2687,141.85,141.83,1.40989048]
[1723958205185,6.2687,141.85,141.83,3.52880698]
[1723958205692,16.1672,141.86,141.83,1.40989048]
[1723958205897,16.1672,141.86,141.84,11.47832199]
[1723958206201,16.1672,141.86,141.85,1.40976128]
[1723958207096,16.1672,141.86,141.84,9.36]
[1723958207275,16.1672,141.86,141.83,2.1183204]
[1723958207475,16.1672,141.86,141.84,2.1183204]
[1723958207695,16.1672,141.86,141.83,2.1183204]
[1723958207895,16.1672,141.86,141.82,9.36]
[1723958208073,16.1672,141.86,141.83,2.11841324]
[1723958208274,16.1672,141.86,141.82,9.36]
[1723958208480,16.1672,141.86,141.83,2.11847807]
[1723958209394,16.1672,141.86,141.82,9.36]
[1723958209574,16.1672,141.86,141.83,2.11847886]
[1723958209780,16.1672,141.86,141.82,9.36]
[1723958209980,16.1672,141.86,141.83,2.11847807]
[1723958210177,16.1672,141.86,141.84,2.11847807]
[1723958210396,16.1672,141.86,141.83,2.11847807]
[1723958210577,16.1672,141.86,141.84,2.11847807]
[1723958210779,16.1672,141.86,141.83,2.11847807]
[1723958211103,16.1672,141.86,141.82,9.36]
[1723958211104,16.1672,141.86,141.84,2.11847807]
[1723958211299,16.1672,141.86,141.83,2.11842513]
[1723958211506,16.1672,141.86,141.84,2.11842513]
[1723958211699,16.1672,141.86,141.82,9.36]
[1723958211896,16.1672,141.86,141.83,2.11842672]
[1723958212206,16.1672,141.86,141.84,2.11842592]
[1723958212506,16.1672,141.86,141.82,9.36]
[1723958212680,16.1672,141.86,141.83,2.11842672]
[1723958212877,16.1672,141.86,141.84,2.11842672]
[1723958213102,16.1672,141.86,141.82,9.36]
[1723958213294,16.1672,141.86,141.83,2.11842672]
[1723958213491,16.1672,141.86,141.84,2.11842672]
[1723958213701,16.1672,141.86,141.82,9.36]
[1723958213905,16.1672,141.86,141.83,2.11847728]
[1723958214095,16.1672,141.86,141.84,2.11847807]
[1723958214290,16.1672,141.86,141.82,9.36]
[1723958214499,16.1672,141.86,141.83,2.11847886]
[1723958214703,16.1672,141.86,141.84,2.11847886]
[1723958215012,16.1672,141.86,141.82,9.36]
[1723958215307,16.1672,141.86,141.83,2.11845563]
[1723958215483,16.1672,141.86,141.84,2.11845563]
[1723958215681,16.1672,141.86,141.83,2.11845563]
[1723958215896,16.1672,141.86,141.82,9.36]
[1723958216108,16.1672,141.86,141.83,2.11853987]
[1723958216314,16.1672,141.86,141.82,9.36]
[1723958216515,16.1672,141.86,141.83,2.11853987]
[1723958216812,16.1672,141.86,141.82,20.0]
[1723958216998,16.1672,141.86,141.83,2.11855041]
[1723958217195,16.1672,141.86,141.82,20.0]
[1723958217394,16.1672,141.86,141.83,2.11855121]
[1723958217596,16.1672,141.86,141.82,20.0]
[1723958217904,16.1672,141.86,141.83,2.11859379]
[1723958218217,16.1672,141.86,141.82,20.0]
[1723958218389,16.1672,141.86,141.83,2.11859379]
[1723958218581,16.1672,141.86,141.81,6.16302689]
[1723958218783,16.1672,141.86,141.82,2.11858376]
[1723958218984,16.1672,141.86,141.83,2.11858376]
[1723958219208,6.0985,141.85,141.8,10.47027246]
[1723958219389,6.0985,141.85,141.81,2.11882114]
[1723958219689,6.0985,141.85,141.79,6.16302689]
[1723958219896,6.0985,141.85,141.8,2.11891509]
[1723958220095,6.0985,141.85,141.81,2.11891509]
[1723958220304,6.0985,141.85,141.79,6.16302689]
[1723958220515,6.0985,141.85,141.8,2.11897525]
[1723958220690,9.36,141.84,141.81,2.11897525]
[1723958221015,16.0745,141.83,141.77,6.16302689]
[1723958221318,16.0745,141.83,141.78,2.11928839]
[1723958221520,16.0745,141.83,141.76,6.17319168]
[1723958221720,16.0745,141.83,141.77,2.11936141]
[1723958222018,16.0745,141.83,141.78,2.11936141]
[1723958222225,16.0745,141.83,141.76,6.17319168]
[1723958222424,16.0745,141.83,141.77,2.11931091]
[1723958222719,16.0745,141.83,141.78,2.11931091]
[1723958222911,16.0745,141.83,141.76,6.17319168]
[1723958223123,16.0745,141.83,141.77,2.11928934]
[1723958223303,16.0745,141.83,141.78,12.88955419]
[1723958223506,16.0745,141.83,141.79,2.11928934]
[1723958223705,16.0745,141.83,141.8,1.41026477]
[1723958223899,16.0745,141.83,141.79,3.5293433]
[1723958224101,16.0745,141.83,141.8,1.41026814]
[1723958224423,6.0985,141.85,141.82,9.36]
[1723958224634,16.0745,141.86,141.82,9.48549]
[1723958224933,16.0745,141.86,141.82,9.36]
[1723958225409,16.0745,141.86,141.83,2.11854078]
[1723958225599,16.0745,141.86,141.82,9.36]
[1723958225802,16.0745,141.86,141.83,2.11851733]
[1723958226123,16.0745,141.86,141.82,9.36]
[1723958226424,16.0745,141.86,141.83,2.11847484]
[1723958226624,16.0745,141.86,141.82,9.36]
[1723958226924,16.0745,141.86,141.83,2.11853968]
[1723958227126,16.0745,141.86,141.82,9.36]
[1723958227312,16.0745,141.86,141.83,2.11851733]
[1723958227500,16.0745,141.86,141.82,9.36]
[1723958227697,16.0745,141.86,141.83,2.11858218]
[1723958227896,16.0745,141.86,141.82,9.36]
[1723958228098,16.0745,141.86,141.83,2.11858297]
[1723958228334,16.0745,141.86,141.82,9.36]
[1723958228623,16.0745,141.86,141.83,2.11858218]
[1723958228926,16.0745,141.86,141.82,9.36]
[1723958229225,16.0745,141.86,141.83,2.11858218]
[1723958229537,16.0745,141.86,141.81,9.61098]
[1723958229712,16.0745,141.86,141.82,2.11859449]
[1723958229909,16.0745,141.86,141.83,2.11859449]
[1723958230106,16.0745,141.86,141.84,1.40986488]
[1723958230312,6.0985,141.88,141.85,2.11831087]
[1723958230617,6.0985,141.88,141.84,1.40986488]
[1723958230822,6.0985,141.88,141.85,2.11830851]
[1723958231017,6.0985,141.88,141.84,1.40986488]
[1723958231223,6.0985,141.88,141.85,2.11830799]
[1723958231421,6.0985,141.88,141.84,1.40972366]
[1723958231625,6.0985,141.88,141.85,2.11830578]
[1723958231926,6.0985,141.88,141.84,1.40972366]
[1723958232122,6.0985,141.88,141.85,3.52795453]
[1723958232326,6.0985,141.88,141.86,1.40964897]
[1723958232626,6.0985,141.88,141.84,3.52795472]
[1723958232828,6.0985,141.88,141.85,2.11830498]
[1723958233031,6.0985,141.88,141.86,1.40965341]
[1723958233202,6.0985,141.88,141.84,2.11830596]
[1723958233406,6.0985,141.88,141.85,2.11830596]
[1723958233603,6.0985,141.88,141.83,9.36]
[1723958234127,6.0985,141.88,141.84,2.11830755]
[1723958234351,6.0985,141.88,141.85,2.11830755]
[1723958234631,6.0985,141.88,141.83,9.36]
[1723958234933,6.0985,141.88,141.84,2.11830596]
[1723958235231,6.0985,141.88,141.85,2.11830596]
[1723958235408,6.0985,141.88,141.83,15.77739989]
[1723958235409,6.0985,141.88,141.83,0.25098]
[1723958235614,6.0985,141.88,141.84,2.11830755]
[1723958235817,6.0985,141.88,141.85,2.11830755]
[1723958236013,6.0985,141.88,141.84,9.36]
[1723958236216,6.0985,141.88,141.85,2.1182194]
[1723958236415,6.0985,141.88,141.84,9.36]
[1723958236616,6.0985,141.88,141.85,2.11822019]
[1723958236818,6.0985,141.88,141.84,9.36]
[1723958237019,6.0985,141.88,141.85,2.11821939]
[1723958237218,6.0985,141.88,141.84,9.36]
[1723958237426,6.0985,141.88,141.85,2.11821939]
[1723958237621,6.0985,141.88,141.83,15.65190989]
[1723958237827,6.0985,141.88,141.84,2.11830595]
[1723958238117,6.0985,141.88,141.85,2.11830595]
[1723958238315,6.0985,141.88,141.84,2.11830595]
[1723958238639,6.0985,141.88,141.85,2.11830674]
[1723958238839,6.0985,141.88,141.84,2.11830674]
[1723958239138,6.0985,141.88,141.85,2.11830674]
[1723958239438,6.0985,141.88,141.84,2.11830674]
[1723958239742,6.0985,141.88,141.85,2.11830674]
[1723958239936,6.0985,141.88,141.84,2.11830674]
[1723958240127,6.0985,141.88,141.85,2.11830674]
[1723958240326,6.0985,141.88,141.84,2.11830674]
[1723958240533,6.0985,141.88,141.83,9.48549]
[1723958240717,6.0985,141.88,141.84,2.11832908]
[1723958240916,6.0985,141.88,141.82,6.16776636]
[1723958241119,6.0985,141.88,141.83,2.11853344]
[1723958241318,6.0985,141.88,141.82,20.0]
[1723958241519,6.0985,141.88,141.83,2.11854606]
[1723958241718,6.0985,141.88,141.82,20.0]
[1723958241943,6.0985,141.88,141.83,2.11854671]
[1723958242143,6.0985,141.88,141.82,20.0]
[1723958242324,6.0985,141.88,141.83,2.11855921]
[1723958242524,6.0985,141.88,141.8,6.16776636]
[1723958242747,6.0985,141.88,141.81,2.11864541]
[1723958242947,6.0985,141.88,141.82,2.11864541]
[1723958243125,6.0985,141.88,141.83,2.11864621]
[1723958243327,6.0985,141.88,141.8,6.16776636]
[1723958243632,6.0985,141.88,141.81,2.11864779]
[1723958243831,6.0985,141.88,141.82,2.11864779]
[1723958244028,6.0985,141.88,141.83,2.11864779]
[1723958244233,6.0985,141.88,141.8,16.64583355]
[1723958244545,6.0985,141.88,141.81,8.28641415]
[1723958244749,6.0985,141.88,141.82,2.11864779]
[1723958244926,6.0985,141.88,141.83,2.11864779]
[1723958245257,6.0985,141.88,141.81,6.16776636]
[1723958245555,6.0985,141.88,141.82,2.11863617]
[1723958245750,6.0985,141.88,141.83,2.11863617]
[1723958245923,6.0985,141.88,141.81,6.16776636]
[1723958246122,6.0985,141.88,141.82,2.1186039]
[1723958246322,6.0985,141.88,141.83,2.1186039]
[1723958246522,6.0985,141.88,141.82,6.16776636]
[1723958246823,6.0985,141.88,141.83,2.11860231]
[1723958247149,6.0985,141.88,141.82,6.16776636]
[1723958247327,6.0985,141.88,141.83,2.11860311]
[1723958247526,6.0985,141.88,141.82,6.16776636]
[1723958247727,6.0985,141.88,141.82,6.17133433]
[1723958247946,6.0985,141.88,141.83,2.11860311]
[1723958248245,6.0985,141.88,141.82,6.17133433]
[1723958248446,6.0985,141.88,141.83,2.11860311]
[1723958248625,6.0985,141.88,141.82,6.17133433]
[1723958248827,6.0985,141.88,141.83,2.11860232]
[1723958249145,6.0985,141.88,141.82,6.17133433]
[1723958249354,6.0985,141.88,141.83,2.11860311]
[1723958249535,6.0985,141.88,141.82,6.17133433]
[1723958249744,6.0985,141.88,141.83,2.11860232]
[1723958249935,6.0985,141.88,141.81,6.17133433]
[1723958250135,6.0985,141.88,141.82,8.28872466]
[1723958250334,6.0985,141.88,141.83,2.11864621]
[1723958250533,6.0985,141.88,141.82,6.17007766]
[1723958250864,6.0985,141.88,141.83,2.11862466]
[1723958251033,6.0985,141.88,141.82,6.17007766]
[1723958251232,6.0985,141.88,141.83,2.11864621]
[1723958251556,6.0985,141.88,141.82,6.17004793]
[1723958251748,6.0985,141.88,141.83,2.11864542]
[1723958252053,6.0985,141.88,141.82,6.17004793]
[1723958252238,6.0985,141.88,141.83,2.11864621]
[1723958252433,25.3152,141.87,141.82,6.17004793]
[1723958252640,30.2493,141.87,141.81,6.17004793]
[1723958252846,30.2493,141.87,141.82,2.11880591]
[1723958253054,30.2493,141.87,141.8,6.17004793]
[1723958253352,30.2493,141.87,141.81,2.11893666]
[1723958253552,15.9552,141.87,141.81,6.17120239]
[1723958253738,15.9552,141.87,141.82,2.11873056]
[1723958254051,15.9552,141.87,141.81,6.17120239]
[1723958254353,15.9552,141.87,141.82,2.11879463]
[1723958254537,15.9552,141.87,141.81,6.17120239]
[1723958254731,15.9552,141.87,141.82,2.11877137]
[1723958254933,15.9552,141.87,141.81,6.17120239]
[1723958255134,15.9552,141.87,141.82,2.11877286]
[1723958255450,15.9552,141.87,141.81,6.17120239]
[1723958255655,15.9552,141.87,141.82,2.11876129]
[1723958255844,15.9552,141.87,141.83,2.11871708]
[1723958256033,15.9552,141.87,141.81,6.17120239]
[1723958256251,15.9552,141.87,141.82,2.11875025]
[1723958256451,15.9552,141.87,141.81,6.17120239]
[1723958256652,15.9552,141.87,141.82,2.11875025]
[1723958256958,15.9552,141.87,141.81,6.17120239]
[1723958257134,15.9552,141.87,141.82,2.1187276]
[1723958257334,15.9552,141.87,141.83,2.1187276]
[1723958257535,15.9552,141.87,141.81,6.17120239]
[1723958257755,15.9552,141.87,141.82,2.11883717]
[1723958257957,9.36,141.86,141.8,6.17120239]
[1723958258248,9.36,141.86,141.81,2.11890136]
[1723958258249,14.2944,141.86,141.81,2.11890136]
[1723958258452,14.2944,141.86,141.8,6.17120239]
[1723958258755,14.2944,141.86,141.81,2.11892481]
[1723958258935,14.2951,141.84,141.77,10.48188978]
[1723958259257,9.36,141.84,141.78,8.29361448]
[1723958259456,9.36,141.84,141.79,2.11913399]
[1723958259670,9.36,141.84,141.8,2.11917646]
[1723958259830,4.9355,141.83,141.77,8.29432372]
[1723958260038,15.9552,141.81,141.75,6.17501784]
[1723958260356,15.9552,141.81,141.76,2.11952561]
[1723958260557,15.9552,141.81,141.77,2.11952561]
[1723958260759,15.9552,141.81,141.75,15.53501784]
[1723958260974,15.9552,141.81,141.76,6.17501784]
[1723958261166,15.9552,141.81,141.77,2.1194407]
[1723958261345,15.9552,141.81,141.75,15.53501784]
[1723958261547,15.9552,141.81,141.76,2.11946068]
[1723958261747,15.9552,141.81,141.77,2.11946068]
[1723958261968,15.9552,141.81,141.75,15.53501784]
[1723958262173,15.9552,141.81,141.76,2.1194692]
[1723958262371,15.9552,141.81,141.77,2.1194692]
[1723958262569,15.9552,141.81,141.78,1.41045308]
[1723958262778,15.9552,141.81,141.76,2.11943659]
[1723958262953,15.9552,141.81,141.77,2.11943659]
[1723958263269,15.9552,141.81,141.76,2.1194367]
[1723958263474,15.9552,141.81,141.77,2.1194367]
[1723958263680,15.9552,141.81,141.75,9.36]
[1723958263982,15.9552,141.81,141.76,2.2449267]
[1723958264274,15.9552,141.81,141.77,2.1194367]
[1723958264660,15.9552,141.81,141.76,0.12549]
[1723958264982,15.9552,141.81,141.77,2.11935226]
[1723958265273,15.9552,141.81,141.77,2.11935004]
[1723958265663,22.4578,141.85,141.77,11.47935004]
[1723958265976,22.4578,141.85,141.81,9.36]
[1723958266179,4.9334,141.89,141.81,9.36]
[1723958266180,22.4578,141.89,141.82,3.52923611]
[1723958266479,22.4578,141.89,141.83,1.40984508]
[1723958266780,22.4578,141.89,141.83,10.76984508]
[1723958266947,22.4578,141.89,141.83,11.47848001]
[1723958267843,22.4578,141.89,141.83,9.36]
[1723958269276,22.4578,141.89,141.84,2.11842933]
[1723958269653,22.4578,141.89,141.83,9.36]
[1723958269853,22.4578,141.89,141.84,2.11838525]
[1723958270259,22.4578,141.89,141.84,2.11840668]
[1723958271646,22.4578,141.89,141.84,2.11842885]
[1723958272270,22.4578,141.89,141.84,2.11838525]
[1723958273492,22.4578,141.89,141.85,10.76976348]
[1723958273788,22.4578,141.89,141.87,9.36]
[1723958274583,9.36,141.95,141.87,9.36]
[1723958274584,22.2355,141.93,141.87,9.36]
[1723958275798,22.2355,141.93,141.87,11.47793591]
[1723958275952,22.2355,141.93,141.89,9.36]
[1723958276151,22.2355,141.93,141.9,1.40915955]
[1723958276455,22.2355,141.96,141.9,1.40915955]
[1723958277568,22.2355,141.96,141.91,9.36]
[1723958277879,22.2355,141.96,141.92,1.40899732]
[1723958279078,6.3571,141.99,141.93,10.76897209]
[1723958279412,6.3571,141.99,141.94,1.40880954]
[1723958280654,6.3571,141.99,141.95,9.36]
[1723958280883,15.8784,142.0,141.95,9.48549]
[1723958281096,15.8784,142.0,141.97,9.36]
[1723958281382,6.3571,142.03,141.98,1.40843174]
[1723958283374,15.8784,142.05,141.99,10.76838408]
[1723958284677,15.8784,142.05,141.99,9.36]
[1723958285607,15.8784,142.05,141.94,22.651]
[1723958285608,15.8784,142.05,141.97,9.36]
[1723958285783,25.2384,142.05,141.97,9.36]
[1723958285977,9.36,142.03,141.95,9.36]
[1723958286183,9.36,142.03,141.93,9.36]
[1723958286385,0.25098,142.04,141.93,9.36]
[1723958286711,65.25098,142.04,141.93,9.36]
[1723958287877,4.9289,142.02,141.91,23.50549]
[1723958288305,4.9289,142.02,141.93,0.12549]
[1723958288607,4.9289,142.02,141.92,45.37647]
[1723958288807,6.3688,142.01,141.93,20.0]
[1723958288978,15.5289,142.0,141.93,20.0]
[1723958295304,15.5289,142.0,141.92,0.12549]
[1723958295603,15.5289,142.0,141.92,20.12549]
[1723958297128,6.3688,141.98,141.86,15.1495]
[1723958297425,6.3688,141.98,141.87,23.38]
[1723958297932,4.9309,141.97,141.87,23.38]
[1723958298741,4.9309,141.97,141.88,20.0]
[1723958299339,11.2991,141.98,141.88,20.0]
[1723958299529,11.2991,141.98,141.89,0.12549]
[1723958301125,15.5289,141.96,141.88,20.0]
[1723958301548,15.5289,141.96,141.87,0.37647]
[1723958301858,15.5289,141.96,141.87,45.25098]
[1723958302157,15.5289,141.96,141.88,20.0]
[1723958302651,15.5289,141.96,141.87,0.12549]
[1723958302856,15.5289,141.96,141.87,0.25098]
[1723958303651,6.3688,141.95,141.86,0.12549]
[1723958303850,11.3004,141.95,141.86,0.12549]
[1723958304650,29.7488,141.95,141.83,16.68981325]
[1723958304854,4.9327,141.91,141.83,7.3678088]
[1723958305150,15.5289,141.9,141.81,673.48]
[1723958305352,15.5289,141.9,141.81,23.38]
[1723958306055,15.5289,141.9,141.82,0.12549]
[1723958306232,15.5289,141.9,141.82,0.37647]
[1723958306431,15.5289,141.9,141.82,20.37647]
[1723958307552,15.5289,141.9,141.8,7.36975587]
[1723958307553,34.8674,141.89,141.8,7.36975587]
[1723958307861,34.8674,141.89,141.77,23.38]
[1723958307862,79.99269,141.89,141.77,23.38]
[1723958308020,79.99269,141.89,141.75,21.3414]
[1723958308021,34.8672,141.89,141.76,7.37318393]
[1723958308227,11.4872,141.89,141.76,28.78319935]
[1723958308449,11.4872,141.89,141.77,1.4099289]
[1723958308631,6.5537,141.89,141.77,1.4099289]
[1723958308952,6.5537,141.89,141.78,0.12549]
[1723958309150,6.5537,141.89,141.78,1.53531648]
[1723958309358,6.5537,141.89,141.81,23.38]
[1723958309829,6.5537,141.89,141.82,1.40988821]
[1723958310030,6.5537,141.89,141.83,1.40988083]
[1723958310249,6.5537,141.89,141.8,0.37647]
[1723958310433,6.5537,141.89,141.81,0.12549]
[1723958310633,6.5537,141.89,141.83,9.37]
[1723958311352,15.5289,141.9,141.87,9.37]
[1723958311577,6.5537,141.93,141.89,9.37]
[1723958312049,6.5537,141.93,141.87,9.37]
[1723958312229,6.5537,141.93,141.88,1.40946856]
[1723958313435,6.5537,141.93,141.89,9.37]
[1723958313630,6.5537,141.93,141.9,1.40919762]
[1723958314731,6.5537,141.93,141.89,1.40923892]
[1723958316751,6.5537,141.93,141.9,1.40923427]
[1723958316969,6.5537,141.93,141.88,23.39]
[1723958316970,6.5537,141.93,141.89,0.12549]
[1723958317158,16.0588,141.94,141.89,66.91101134]
[1723958317335,6.5787,141.96,141.9,23.39]
[1723958317535,6.5787,141.96,141.87,0.12549]
[1723958317838,6.5787,141.96,141.87,20.25098]
[1723958320057,6.5787,141.96,141.87,20.12549]
[1723958320283,16.4816,141.95,141.87,20.0]
[1723958321436,16.4816,141.95,141.88,1.40930013]
[1723958322561,16.4816,141.95,141.87,20.0]
[1723958323256,16.4816,141.95,141.88,0.37647]
[1723958323444,16.4816,141.95,141.88,45.37647]
[1723958330151,6.6,141.94,141.87,20.0]
[1723958330367,29.99,141.94,141.83,23.39]
[1723958331173,16.1883,141.93,141.83,23.39]
[1723958331559,16.1883,141.93,141.84,45.50196]
[1723958331766,16.1883,141.93,141.85,20.0]
[1723958333982,25.5483,141.93,141.85,20.0]
[1723958334280,25.5483,141.93,141.86,1.40960006]
[1723958335576,25.5483,141.93,141.85,20.0]
[1723958336876,25.5483,141.93,141.86,1.40952921]
[1723958339181,25.5483,141.93,141.86,3.52763966]
[1723958340478,25.5483,141.93,141.86,3.52759561]
[1723958341265,25.5483,141.93,141.86,1.40952921]
[1723958341485,25.5483,141.93,141.85,20.0]
[1723958341660,25.5483,141.93,141.86,2.11807238]
[1723958341863,25.5483,141.93,141.85,20.0]
[1723958342188,25.5483,141.93,141.86,2.1180703]
[1723958342486,25.5483,141.93,141.85,20.0]
[1723958342782,25.5483,141.93,141.86,2.11809193]
[1723958342983,25.5483,141.93,141.85,20.0]
[1723958343182,25.5483,141.93,141.85,26.18018906]
[1723958343390,30.4803,141.93,141.86,2.11809272]
[1723958343590,30.4803,141.93,141.85,20.0]
[1723958343766,30.4803,141.93,141.86,2.11813599]
[1723958343968,30.4803,141.93,141.85,20.0]
[1723958344175,30.4803,141.93,141.86,2.11813599]
[1723958344497,6.6,141.94,141.82,6.18018906]
[1723958344498,6.6,141.88,141.82,6.18018906]
[1723958344676,6.6,141.88,141.83,2.11856004]
[1723958344989,6.6,141.88,141.81,6.18018906]